Cogmind - Beta 17 @@@ ROGUE MODE // 2026.07.19 @ 18:40:12 Player: Cinder Result: Self-destructed Performance ------------- Evolutions (3) 1500 Regions Visited (9) 1800 Robots Destroyed (104) 520 Value Destroyed (2408) 2408 Prototype IDs (1) 20 Alien Tech Used (0) 0 Bonus (1394) 1394 TOTAL SCORE: 7642 Bonus ------- High Alert Combat Kills 41 Follower Combat Kills 153 Entered Garrisons 200 Used RIF Installer 1000 Cogmind --------- Core Integrity 659/700 Matter 2/300 Energy 243/265 System Corruption 0% Temperature Cool (0) Movement Rolling (121) Ox3 Location -7/Factory Parts ------- > --- POWER (1) -------- Improved Ion Engine > --- PROPULSION (3) --- Wheel Armored Wheel Armored Wheel > --- UTILITY (6) ------ Cooling System Huge Storage Unit Hardened Light Armor Plating Improved Shield Generator Tractor Beam > --- WEAPON (3) ------- Flak Cannon Advanced Assault Cannon > --- INVENTORY (25) --- Improved Ion Engine Reinforced Ion Engine Improved Deuterium Engine Armored Wheel Armored Wheel Armored Huge Wheel Cooling System Improved Cooling System Huge Storage Unit High-capacity Matter Pod (0) Structural Scanner Machine Analyzer Improved Light Armor Plating Improved Light Armor Plating Improved Light Armor Plating Improved Medium Armor Plating Shield Generator Tractor Beam Gauss Rifle Light Cannon Light Cannon Rocket Launcher Improved Datajack Peak State ------------ > --- POWER ------------ Improved Ion Engine > --- PROPULSION ------- Armored Wheel Armored Wheel Armored Wheel > --- UTILITY ---------- Cooling System Huge Storage Unit Structural Scanner Hardened Light Armor Plating Improved Shield Generator System Restoration Module > --- WEAPON ----------- Light Cannon Flak Cannon Advanced Assault Cannon > --- INVENTORY -------- Improved Ion Engine Reinforced Ion Engine Improved Deuterium Engine Armored Wheel Armored Wheel Armored Huge Wheel Improved Heat Sink Improved Cooling System Huge Storage Unit High-capacity Matter Pod High-capacity Matter Pod Machine Analyzer Improved Light Armor Plating Improved Light Armor Plating Improved Light Armor Plating Improved Medium Armor Plating Shield Generator Tractor Beam Tractor Beam Gauss Rifle Light Cannon Light Cannon Rocket Launcher Rocket Launcher [Rating: 36] Favorites ----------- Power Improved Ion Engine Engine Improved Ion Engine Power Core Light Nuclear Core Propulsion Armored Wheel Wheel Armored Wheel Utility Huge Storage Unit Device Heat Sink Storage Huge Storage Unit Protection Light Armor Plating Weapon Light Cannon Energy Gun Medium Laser Energy Cannon Beam Cannon Ballistic Gun Light Assault Rifle Ballistic Cannon Light Cannon Launcher Rocket Launcher Build | -11 -10 -10 -9 -9 -9 -8 -8 -8 -7 ------- Run | Yrd Mat Min Mat Min Exi Min Mat Gar Fac Slots Evolved 6 | . . . 2 . . . 2 . 2 Power . | . . . . . . . . . . Propulsion 1 | . . . 1 . . . . . . Utility 4 | . . . 1 . . . 1 . 2 Weapon 1 | . . . . . . . 1 . . Parts Attached 64 | 8 11 3 14 5 . 1 4 8 10 Power 8 | 1 3 . 1 . . 1 1 1 . Engine 7 | 1 3 . 1 . . 1 . 1 . Core 1 | . . . . . . . 1 . . Reactor . | . . . . . . . . . . Propulsion 14 | 3 1 1 5 1 . . . 2 1 Treads . | . . . . . . . . . . Leg . | . . . . . . . . . . Wheel 14 | 3 1 1 5 1 . . . 2 1 Hover . | . . . . . . . . . . Flight . | . . . . . . . . . . Utility 24 | 2 5 1 3 3 . . 2 1 7 Device 13 | 1 2 . 2 2 . . 1 . 5 Storage 4 | 1 3 . . . . . . . . Processor . | . . . . . . . . . . Hackware . | . . . . . . . . . . Protection 7 | . . 1 1 1 . . 1 1 2 Artifact . | . . . . . . . . . . Weapon 18 | 2 2 1 5 1 . . 1 4 2 Energy Gun 2 | 2 . . . . . . . . . Energy Cannon 1 | . . 1 . . . . . . . Ballistic Gun 5 | . 2 . 2 . . . . 1 . Ballistic Cannon 7 | . . . 3 1 . . 1 . 2 Launcher 3 | . . . . . . . . 3 . Special Weapon . | . . . . . . . . . . Impact Weapon . | . . . . . . . . . . Slashing Weapon . | . . . . . . . . . . Piercing Weapon . | . . . . . . . . . . Special Melee Weapon . | . . . . . . . . . . Unidentified Prototypes 1 | . . . 1 . . . . . . Parts Lost 20 | . 4 1 2 4 . . . 6 3 Power 1 | . 1 . . . . . . . . Propulsion 6 | . 1 1 1 1 . . . 2 . Utility 4 | . . . . 2 . . . 1 1 Weapon 9 | . 2 . 1 1 . . . 3 2 Highest Loss Streak 4 | . 1 1 2 3 . . . 4 3 To Critical Strikes . | . . . . . . . . . . Average Backups 18 | 2 11 23 24 23 21 22 21 20 22 Power 2 | . 1 3 2 2 2 2 2 2 2 Propulsion 3 | . 2 4 3 4 4 4 4 2 2 Utility 9 | . 4 12 11 10 10 11 10 11 11 Weapon 4 | . 2 4 6 5 5 5 4 4 4 Tool/Special . | . . . . . . . . . . Unused Backups 32 | 1 3 . 6 . . . . . 22 Power 6 | . 1 . 2 . . . . . 3 Propulsion 5 | 1 . . . . . . . . 4 Utility 13 | . 2 . . . . . . . 11 Weapon 7 | . . . 4 . . . . . 3 Tool/Special 1 | . . . . . . . . . 1 Average Slot Usage (%) 97 | . 99 95 99 92 100 100 99 92 98 Engine 9 | . 13 14 11 11 11 11 1 4 7 Wheel 27 | . 27 24 32 26 33 33 27 26 23 Device 15 | . 14 10 10 9 11 11 18 17 27 Storage 10 | . 14 14 11 11 11 11 9 9 7 Protection 7 | . . 3 10 11 11 11 9 9 9 Energy Gun 2 | . 10 . . . . . . . . Energy Cannon 1 | . . 11 4 . . . . . . Ballistic Gun 9 | . 17 16 6 11 11 11 9 7 . Ballistic Cannon 9 | . . . 10 11 11 11 17 8 19 Launcher 1 | . . . . . . . . 4 1 Peak Build Rating 36 | 7 13 14 20 19 19 19 23 23 36 Average Rating 17 | 5 8 12 17 17 19 18 22 19 29 On Entrance 14 | . 7 13 13 18 19 19 18 22 17 Avg Prop Armor Cover (%) . | . . . . . . . . . . Naked Turns . | . . . . . . . . . . Heaviest Build 115 | 13 90 96 103 102 102 102 102 102 115 Greatest Support 36 | 26 20 22 34 36 36 36 36 36 36 Greatest Overweight (x) 9 | . 8 9 4 4 2 2 2 4 4 Average Overweight (x) 2 | . 3 4 2 2 2 2 2 2 2 Largest Inventory Capacity 25 | 8 25 25 25 25 25 25 25 25 25 Average Capacity 23 | 7 23 25 25 25 25 25 25 25 25 Most Carried 25 | 4 24 24 25 25 22 23 23 23 25 Average Carried 19 | 2 11 23 24 23 21 22 21 20 23 Final Capacity 25 | 8 25 25 25 25 25 25 25 25 25 Final Carried 25 | 3 24 23 25 21 22 22 23 19 24 Class Distribution -------------------- 66% | Mutant 15% | Tank 9% | Scavenger-Tank 4% | Scavenger-Mutant 3% | Commander-Mutant Dominant Class ---------------- Mutant | -10/Materials Mutant | -10/Mines Mutant | -9/Materials Mutant | -9/Mines Mutant | -9/Exiles Mutant | -8/Mines Tank | -8/Materials Scavenger-Tank | -8/Garrison Tank | -7/Factory Resources | -11 -10 -10 -9 -9 -9 -8 -8 -8 -7 ----------- Run | Yrd Mat Min Mat Min Exi Min Mat Gar Fac Matter Collected 2548 | 280 304 51 568 166 139 68 43 735 194 Remotely 1178 | 56 20 . 347 149 . 68 . 454 84 Salvage Created 2610 | 202 412 109 1092 157 . 34 42 377 185 Parts 201 | 14 28 6 83 . . 3 4 29 34 Haulers Intercepted 2 | . 1 . 1 . . . . . . Recyclers Shooed 4 | . . . 1 . . . . . 3 Parts Field Recycled . | . . . . . . . . . . Retrieved Matter . | . . . . . . . . . . Parts Self-Destructed . | . . . . . . . . . . Prevented . | . . . . . . . . . . Parts Restored . | . . . . . . . . . . Kills | -11 -10 -10 -9 -9 -9 -8 -8 -8 -7 ------- Run | Yrd Mat Min Mat Min Exi Min Mat Gar Fac Combat Hostiles Destroyed 79 | . 10 2 22 14 . 3 1 21 6 Guns 25 | . 9 1 5 6 . 2 1 1 . Cannons 30 | . . 1 15 8 . 1 . 2 3 AOE 24 | . 1 . 2 . . . . 18 3 Classes Destroyed 14 | 3 4 1 3 1 . . . 1 1 Worker 13 | 2 1 . 8 . . . . . 2 Builder 7 | . . . 2 . . . . . 5 Tunneler 6 | 4 . . . . . . . . 2 Hauler 2 | . 1 . 1 . . . . . . Recycler 3 | 1 . . 2 . . . . . . Operator 2 | . . . 2 . . . . . . Watcher 6 | . 2 . 3 . . . . 1 . Swarmer 25 | . 5 . 6 . . 3 . 8 3 Cutter 2 | . . . . . . . . 2 . Grunt 21 | . 5 . 10 . . . . 6 . Brawler 3 | . . . 3 . . . . . . Sentry 11 | . . 2 3 . . . 1 5 . Programmer 3 | . . . . . . . . . 3 Assembled 14 | . . . . 14 . . . . . Best Kill Streak 18 | 7 4 2 9 14 . 3 1 18 8 Combat Bots Only 18 | . 3 2 6 14 . 3 1 18 4 Max Kills in Single Turn 9 | 1 2 1 9 1 . 1 1 4 4 Gunslinging 1 | . 1 . . . . . . . . Exploded 4 | . 1 . 2 . . . . 4 2 Melee . | . . . . . . . . . . Uniques/NPCs Destroyed . | . . . . . . . . . . Combat | -11 -10 -10 -9 -9 -9 -8 -8 -8 -7 -------- Run | Yrd Mat Min Mat Min Exi Min Mat Gar Fac Hostile Shots Fired 363 | . 53 24 93 42 . 12 8 67 64 Missed 104 | . 10 10 25 8 . 4 5 23 19 Hits 259 | . 43 14 68 34 . 8 3 44 45 Melee 10 | . . . 2 7 . . . 1 . Projectile 249 | . 43 14 66 27 . 8 3 43 45 AOE 2 | . . . . . . . . 2 . Critical Strikes 11 | . 3 2 1 . . 1 1 2 1 Damage Taken 3149 | 23 466 212 682 457 . 72 40 753 444 Core 496 | . 99 110 95 43 . 10 . 98 41 Absorbed by Shields 336 | . . . . 108 . . 5 58 165 Core Remaining (%) 65 | 100 . 16 . . . 63 . 82 . Volleys Fired 274 | 18 49 9 73 39 . 5 2 54 25 Largest 3 | 2 2 2 2 2 . 2 3 3 3 Hottest 107 | 90 90 80 83 53 . 53 83 86 107 Shots Fired 508 | 36 91 18 145 65 1 10 6 81 55 Gun 257 | 36 91 9 50 39 1 5 2 24 . Cannon 213 | . . 9 95 26 . 5 4 31 43 Launcher 38 | . . . . . . . . 26 12 Special . | . . . . . . . . . . Kinetic 354 | . 57 9 108 65 1 10 6 55 43 Thermal 84 | 18 20 9 37 . . . . . . Explosive 38 | . . . . . . . . 26 12 Electromagnetic 32 | 18 14 . . . . . . . . Robot Hit Streak 10 | 8 10 7 9 7 . 2 6 9 6 Robot Miss Streak 7 | 4 4 1 7 3 . 1 . 3 6 Penetration Max . | . . . . . . . . . . Secondary Targets 3 | . 3 . . . . . . . . Max Gunslinging Chain 1 | . 1 . . . . . . . . Shots Hit Robots 289 | 22 56 14 82 38 . 6 4 35 32 Core Hits 187 | 7 26 5 41 26 . 3 2 43 34 Critical Kills . | . . . . . . . . . . Critical Parts Destroyed 2 | . 1 . . 1 . . . . . Critical Strikes 9 | 2 3 . 1 2 . . . . 1 Burn 4 | 2 2 . . . . . . . . Destroy 2 | . 1 . . 1 . . . . . Blast 3 | . . . 1 1 . . . . 1 Melee Attacks . | . . . . . . . . . . Impact . | . . . . . . . . . . Slashing . | . . . . . . . . . . Piercing . | . . . . . . . . . . Sneak Attacks . | . . . . . . . . . . Combat Hostiles . | . . . . . . . . . . Follow-up Attacks . | . . . . . . . . . . Damage Inflicted 7640 | 340 574 177 2321 625 . 92 69 2032 1410 Guns 2220 | 293 540 72 576 382 . 55 34 268 . Cannons 1966 | . . 105 879 243 . 37 35 118 549 Explosions 3366 | 47 34 . 866 . . . . 1646 773 Melee . | . . . . . . . . . . Ramming 88 | . . . . . . . . . 88 Kinetic 3097 | . 285 72 1019 625 . 92 69 386 549 Thermal 1747 | 172 168 105 1302 . . . . . . Explosive 2419 | . . . . . . . . 1646 773 Electromagnetic 289 | 168 121 . . . . . . . . Impact . | . . . . . . . . . . Slashing . | . . . . . . . . . . Piercing . | . . . . . . . . . . Highest Corruption 8 | . . . 3 8 8 8 . . 1 Average Corruption 5 | . . . 3 6 8 8 . . 1 Corruption Purged 1 | . . . . . . . . . 1 Corruption Blocked . | . . . . . . . . . . Effects 33 | . . . 10 7 7 8 . . 1 Message Errors 9 | . . . 3 2 1 3 . . . Matter Fused 7 | . . . 2 2 1 1 . . 1 Heat Flow Errors 6 | . . . . 1 3 2 . . . Energy Discharges 2 | . . . 2 . . . . . . Parts Rejected 1 | . . . 1 . . . . . . Data Loss (minor) 2 | . . . 1 . . 1 . . . Data Loss (major) 3 | . . . . 2 . 1 . . . Misfires 1 | . . . . . 1 . . . . Alerts 2 | . . . 1 . 1 . . . . Overload Shots . | . . . . . . . . . . Overflow Damage 289 | 16 . . 193 . . . . 26 54 Projectiles 13 | . . . 10 . . . . . 3 Explosions 276 | 16 . . 183 . . . . 26 51 Melee . | . . . . . . . . . . Knockbacks 12 | . . . 4 3 . . . . 5 Impact . | . . . . . . . . . . Kinetic 11 | . . . 4 2 . . . . 5 Secondary 1 | . . . . 1 . . . . . Self-Inflicted Damage 267 | 23 . . . . . . . 147 97 Shots 7 | 1 . . . . . . . 5 1 Rammed 5 | . . . . . . . . . 5 Targets Rammed 5 | . . . . . . . . . 5 Kicked . | . . . . . . . . . . Crushed . | . . . . . . . . . . Highest Temperature 403 | 120 201 41 144 403 236 200 . 9 6 Average Temperature 65 | 54 67 15 34 132 88 64 . 6 2 Received Heat Transfer 849 | . 228 81 195 114 . . 33 198 . Effects 1 | . . . . 1 . . . . . Energy Bleed 1 | . . . . 1 . . . . . Siege Activations . | . . . . . . . . . . Martial Activations . | . . . . . . . . . . Shielding Activations . | . . . . . . . . . . Robots Disrupted . | . . . . . . . . . . Combat Hostiles . | . . . . . . . . . . Robots Corrupted . | . . . . . . . . . . Combat Hostiles . | . . . . . . . . . . Parts Fried 1 | 1 . . . . . . . . . Impact Corruptions . | . . . . . . . . . . Robots Melted . | . . . . . . . . . . Combat Hostiles . | . . . . . . . . . . Parts Melted 7 | 4 2 . 1 . . . . . . Heat Transferred 2920 | 568 605 222 1525 . . . . . . Parts Sabotaged . | . . . . . . . . . . Parts Stolen . | . . . . . . . . . . Parts Stripped . | . . . . . . . . . . Power Chain Reactions 2 | 1 1 . . . . . . . . Alert | -11 -10 -10 -9 -9 -9 -8 -8 -8 -7 ------- Run | Yrd Mat Min Mat Min Exi Min Mat Gar Fac Maximum Alert Level 3 | . . . 3 1 . . . 2 1 Low Security (%) 59 | 100 100 100 45 36 . 100 100 17 18 Level 1 29 | . . . 52 63 . . . 9 81 Level 2 10 | . . . . . . . . 72 . Level 3 . | . . . 2 . . . . . . Level 4 . | . . . . . . . . . . Level 5 . | . . . . . . . . . . High Security . | . . . . . . . . . . Max Security . | . . . . . . . . . . Peak Influence 736 | 10 70 30 736 283 . 70 21 686 349 Initial 349 | . 3 . . 283 . . . 3 349 Average 168 | 1 25 9 195 217 . 21 6 423 272 Influence Increases 2699 | 35 375 40 1034 . . 70 35 783 327 Destroy 0b10 Robot/C 1440 | . 200 40 440 . . 60 20 560 120 Destroy 0b10 Robot/NC 195 | 35 20 . 90 . . . . 5 45 Destroy Leader 234 | . 56 . 98 . . 10 10 20 40 Allied During Kill 45 | . . . . . . . . 45 . Successful Hack 116 | . 50 . 24 . . . 4 14 24 Disable Machine 330 | . . . 300 . . . . . 30 Anti-Garrison Action 50 | . . . . . . . . 50 . Destroy Structure 199 | . 4 . 52 . . . 1 74 68 Lose Combat Pursuer 90 | . 45 . 30 . . . . 15 . Influence Decreases 2387 | 30 380 40 306 575 153 70 30 122 681 Entered New Map 919 | . 2 . . 445 153 . . 2 317 Time Decay 1238 | 30 348 40 296 90 . 70 30 . 334 Lost Part 170 | . 30 . 10 40 . . . 60 30 Lost Ally 60 | . . . . . . . . 60 . Squads Dispatched 7 | . 1 . 2 . . . . . 4 Investigation 1 | . . . . . . . . . 1 Extermination 2 | . . . . . . . . . 2 Reinforcement 4 | . 1 . 2 . . . . . 1 Assault . | . . . . . . . . . . Garrison . | . . . . . . . . . . Intercept . | . . . . . . . . . . Searches Triggered . | . . . . . . . . . . Construction Impeded 1 | . . . . . . . . . 1 Haulers Reinforced . | . . . . . . . . . . Active Scanning Responses . | . . . . . . . . . . Cargo Convoy Interrupts . | . . . . . . . . . . Stealth | -11 -10 -10 -9 -9 -9 -8 -8 -8 -7 --------- Run | Yrd Mat Min Mat Min Exi Min Mat Gar Fac Distress Signals 11 | . 2 . 5 . . . 1 1 2 Communications Jammed . | . . . . . . . . . . Distress Signals . | . . . . . . . . . . Times Spotted 109 | . 18 2 31 17 . 2 5 23 11 Peak Tracking Total 16 | . 4 2 6 16 . 2 4 9 5 Tactical Retreats 9 | . 3 . 2 3 . . . 1 . Traps | -11 -10 -10 -9 -9 -9 -8 -8 -8 -7 ------- Run | Yrd Mat Min Mat Min Exi Min Mat Gar Fac Traps Triggered 3 | . . . 1 . . . . 2 . Indirectly . | . . . . . . . . . . Trap Hack Attempts . | . . . . . . . . . . Triggered . | . . . . . . . . . . Disarmed . | . . . . . . . . . . Reprogrammed . | . . . . . . . . . . Reused . | . . . . . . . . . . Traps Extracted . | . . . . . . . . . . Installed . | . . . . . . . . . . Triggered . | . . . . . . . . . . Objects Rigged 3 | . . . 3 . . . . . . Exploded 1 | . . . 1 . . . . . . Machines | -11 -10 -10 -9 -9 -9 -8 -8 -8 -7 ---------- Run | Yrd Mat Min Mat Min Exi Min Mat Gar Fac Machines Disabled 24 | . . 2 20 . . . . . 2 Max in Single Turn 20 | . . 1 20 . . . . . 2 Machines Repaired . | . . . . . . . . . . Machines Dismantled . | . . . . . . . . . . Machines Sabotaged . | . . . . . . . . . . Overloaded Fab Kills . | . . . . . . . . . . Hacking | -11 -10 -10 -9 -9 -9 -8 -8 -8 -7 --------- Run | Yrd Mat Min Mat Min Exi Min Mat Gar Fac Machines Accessed 22 | . 8 . 6 . 1 . 1 1 5 Terminals 13 | . 6 . 4 . . . . 1 2 Fabricators 1 | . . . . . . . . . 1 Repair Stations . | . . . . . . . . . . Recycling Units 4 | . 2 . 1 . . . . . 1 Scanalyzers 2 | . . . 1 . . . . . 1 Garrison Access 1 | . . . . . . . 1 . . Total Hacks 50 | . 22 . 12 . 1 . 2 2 11 Successful 20 | . 8 . 6 . 1 . 1 1 3 Failed 30 | . 14 . 6 . . . 1 1 8 Catastrophic 10 | . 3 . 2 . . . . 1 4 Database Lockouts . | . . . . . . . . . . Manual 38 | . 21 . 8 . . . . . 9 Terminals 30 | . 18 . 6 . . . . 2 4 Fabricators 3 | . . . . . . . . . 3 Repair Stations . | . . . . . . . . . . Recycling Units 11 | . 4 . 4 . . . . . 3 Scanalyzers 3 | . . . 2 . . . . . 1 Garrison Access 2 | . . . . . . . 2 . . Terminal Hacks 6 | . 2 . 1 . 1 . . 1 1 Record 1 | . . . . . 1 . . . . Part Schematic 1 | . 1 . . . . . . . . Branch Access Points 1 | . . . 1 . . . . . . Recall Investigation 1 | . . . . . . . . . 1 Registered Components 1 | . 1 . . . . . . . . Garrison Registry 1 | . . . . . . . . 1 . Fabricator Hacks 1 | . . . . . . . . . 1 Network Status 1 | . . . . . . . . . 1 Repair Station Hacks . | . . . . . . . . . . Recycling Unit Hacks . | . . . . . . . . . . Scanalyzer 3 | . . . 2 . . . . . 1 Retrieve Study 3 | . . . 2 . . . . . 1 Garrison Access Hacks 1 | . . . . . . . 1 . . Unlock Access 1 | . . . . . . . 1 . . Unauthorized Hacks 9 | . 6 . 3 . . . . . . Terminals 5 | . 4 . 1 . . . . . . Botnet 4 | . 4 . . . . . . . . Detonate 1 | . . . 1 . . . . . . Fabricators . | . . . . . . . . . . Repair Stations . | . . . . . . . . . . Recycling Units 4 | . 2 . 2 . . . . . . Reject 3 | . 2 . 1 . . . . . . Mask 1 | . . . 1 . . . . . . Scanalyzers . | . . . . . . . . . . Garrison Access . | . . . . . . . . . . Data Cores Recovered . | . . . . . . . . . . Used . | . . . . . . . . . . Hacking Detections 17 | . 7 . 4 . . . 1 1 4 Full Trace Events 3 | . 1 . . . . . . 1 1 Feedback Events . | . . . . . . . . . . Feedback Blocked . | . . . . . . . . . . Robot Schematics Acquired . | . . . . . . . . . . Robots Built . | . . . . . . . . . . Authchips . | . . . . . . . . . . Time . | . . . . . . . . . . Total Robot Build Rating . | . . . . . . . . . . Part Schematics Acquired 1 | . 1 . . . . . . . . Parts Built . | . . . . . . . . . . Authchips . | . . . . . . . . . . Time . | . . . . . . . . . . Total Part Build Rating . | . . . . . . . . . . Part Studies Acquired 3 | . . . 2 . . . . . 1 Parts Repaired . | . . . . . . . . . . Time . | . . . . . . . . . . Parts Recycled . | . . . . . . . . . . Recycled Matter . | . . . . . . . . . . Retrieved Matter . | . . . . . . . . . . Retrieved Components . | . . . . . . . . . . Parts Scanalyzed . | . . . . . . . . . . Part Schematics Acquired . | . . . . . . . . . . Parts Damaged . | . . . . . . . . . . Bothacking | -11 -10 -10 -9 -9 -9 -8 -8 -8 -7 ------------ Run | Yrd Mat Min Mat Min Exi Min Mat Gar Fac Used RIF Installer 2 | . . . . . . . . 2 . Coupler Efficiency 1 | . . . . . . . . 1 . Robots Hacked . | . . . . . . . . . . Non-combat . | . . . . . . . . . . Combat . | . . . . . . . . . . Robot Hacks Applied . | . . . . . . . . . . Relay Couplers Released . | . . . . . . . . . . Fabnet Peak Effective % . | . . . . . . . . . . Robots Rewired 6 | . . . . . . . . 6 . Allies Hacked . | . . . . . . . . . . Hacks Repelled . | . . . . . . . . . . Allies | -11 -10 -10 -9 -9 -9 -8 -8 -8 -7 -------- Run | Yrd Mat Min Mat Min Exi Min Mat Gar Fac Total Allies 6 | . . . . . . . . 6 . Largest Group 6 | . . . . . . . . 6 . Highest-Rated Group 78 | . . . . . . . . 78 . Highest-Rated Ally 16 | . . . . . . . . 16 . Total Orders . | . . . . . . . . . . Ally Attacks 33 | . . . . . . . . 33 . Total Damage 424 | . . . . . . . . 424 . Kills 7 | . . . . . . . . 7 . Allies Corrupted 1 | . . . . . . . . 1 . Allies Melted . | . . . . . . . . . . Intel | -11 -10 -10 -9 -9 -9 -8 -8 -8 -7 ------- Run | Yrd Mat Min Mat Min Exi Min Mat Gar Fac Active Infowar (turns) 471 | . . . . 25 . . . . 446 Structural 446 | . . . . . . . . . 446 Seismic 25 | . . . . 25 . . . . . Robot Analysis Total . | . . . . . . . . . . Derelict Logs Recovered 2 | . . 1 . 1 . . . . . Drone Launches . | . . . . . . . . . . Drone Recoveries . | . . . . . . . . . . Exploration | -11 -10 -10 -9 -9 -9 -8 -8 -8 -7 ------------- Run | Yrd Mat Min Mat Min Exi Min Mat Gar Fac Turns Passed 4149 | 152 1106 108 762 190 179 238 104 561 749 Spaces Moved 2513 | 90 696 53 429 73 162 184 51 269 506 Core 1 | 1 . . . . . . . . . Treads . | . . . . . . . . . . Legs . | . . . . . . . . . . Wheels 2512 | 89 696 53 429 73 162 184 51 269 506 Hover . | . . . . . . . . . . Flight . | . . . . . . . . . . Fastest Speed 50 | 50 80 140 103 106 110 110 110 110 110 Average Speed 118 | 86 131 149 108 108 110 110 110 110 121 Slowest Speed 215 | 90 200 215 140 140 110 110 110 140 140 Overloaded Moves . | . . . . . . . . . . Propulsion Burnouts . | . . . . . . . . . . Robots Hopped . | . . . . . . . . . . Potential Cave-ins . | . . . . . . . . . . Cave-ins Triggered . | . . . . . . . . . . Exploration Rate (%) 34 | 5 94 16 51 16 56 49 5 39 14 Regions Visited 9 Branch Regions 4 Pre-discovered Areas 2 | . . . . 1 1 . . . . Known Exits Taken 2 | . . . 1 . . . 1 . . Unknown Exits Taken 6 | 1 1 1 . 1 1 1 . . . Scrap Searched 1 | . . . . . . 1 . . . Spaces Dug . | . . . . . . . . . . Terrain Destroyed 199 | 6 3 . 47 . . . . 75 68 Melee . | . . . . . . . . . . Projectile 2 | . . . 1 . . . . . 1 AOE 197 | 6 3 . 46 . . . . 75 67 Terrain Rammed . | . . . . . . . . . . Walls Destroyed . | . . . . . . . . . . Machines Disabled . | . . . . . . . . . . Actions | -11 -10 -10 -9 -9 -9 -8 -8 -8 -7 --------- Run | Yrd Mat Min Mat Min Exi Min Mat Gar Fac Total 3212 | 124 809 64 586 117 162 210 92 455 593 Wait 167 | 2 17 . 36 . . 19 31 50 12 Move 2505 | 89 695 52 428 72 161 183 51 268 506 Hop . | . . . . . . . . . . Pick Up 69 | 5 28 . 15 . 1 . 1 3 16 Fast Attach 21 | 7 . . 8 . . 1 . 2 3 Attach 24 | . 4 1 4 4 . . 2 6 3 Detach 3 | . . . . . . 1 . 2 . Swap 37 | 1 7 2 6 2 . . 4 6 9 Drop 47 | 2 9 . 16 . . 1 1 4 14 Fire 274 | 18 49 9 73 39 . 5 2 54 25 Melee . | . . . . . . . . . . Ram 5 | . . . . . . . . . 5 Kick . | . . . . . . . . . . Crush . | . . . . . . . . . . Escape Stasis 16 | . . . . . . . . 16 . Rewire 44 | . . . . . . . . 44 . Trap . | . . . . . . . . . . Miscellaneous . | . . . . . . . . . . Route ------- -11/Scrapyard -10/Materials (discovered 5 exits: *Mat x3 / [*Min x2]) -10/Mines -9/Materials (discovered 2 exits: *Mat / *Min) -9/Mines -9/Exiles (discovered 2 exits: [*Min x2]) -8/Mines -8/Materials -8/Garrison (discovered 4 exits: *Fac x3 / [Mat]) -7/Factory History --------- Turn | Location | Event 19 | -11/Scrapyard | Discovered new exit (range 15) 153 | -11/Scrapyard | Entered Materials 301 | -10/Materials | Build established: Mutant 357 | -10/Materials | Discovered new exit (range 15) 643 | -10/Materials | Discovered new exit (range 16) 868 | -10/Materials | Discovered new exit (range 5) 938 | -10/Materials | Discovered new exit (range 3) 1229 | -10/Materials | Discovered new exit (range 16) 1259 | -10/Materials | Entered Mines 1271 | -10/Mines | Learned Materials non-interactive machine intel 1286 | -10/Mines | Core integrity fell below 50% 1302 | -10/Mines | Core integrity fell below 20% 1343 | -10/Mines | Discovered new exit (range 15) 1367 | -10/Mines | Entered Materials 1367 | -9/Materials | Evolved 2 slots: Propulsion x1, Utility x1 1368 | -9/Materials | Loaded intel: 37 non-interactive machine locations 1856 | -9/Materials | Discovered new exit (range 14) 2041 | -9/Materials | Identified exit to Mines 2129 | -9/Materials | Entered Mines 2163 | -9/Mines | Assembled infested the area 2237 | -9/Mines | Lost 3 parts (1n2u) 2301 | -9/Mines | Destroyed 14 combat bots 2303 | -9/Mines | Learned location of Zion (-7) 2314 | -9/Mines | Deemed a non-threat by the Exiles lab entrance 2314 | -9/Mines | Discovered new exit (range 5) 2319 | -9/Mines | Entered Exiles 2336 | -9/Exiles | Discovered new exit (range 15) 2347 | -9/Exiles | Met 8R-AWN 2365 | -9/Exiles | Met EX-HEX 2428 | -9/Exiles | Met EX-DEC 2489 | -9/Exiles | Discovered new exit (range 10) 2498 | -9/Exiles | Entered Mines 2712 | -8/Mines | Discovered new exit (range 12) 2736 | -8/Mines | Entered Materials 2736 | -8/Materials | Evolved 2 slots: Utility x1, Weapon x1 2840 | -8/Materials | Identified exit to Garrison 2840 | -8/Materials | Entered Garrison 2887 | -8/Garrison | Discovered new exit (range 39) 2887 | -8/Garrison | Discovered new exit (range 41) 2887 | -8/Garrison | Discovered new exit (range 55) 2887 | -8/Garrison | Discovered new exit (range 33) 2938 | -8/Garrison | Triggered checkpoint 3022 | -8/Garrison | Lost 4 parts (2n1u1w) 3023 | -8/Garrison | Destroyed 18 combat bots 3088 | -8/Garrison | Installed Relay Interface Framework 3329 | -8/Garrison | Expanded RIF knowledge: Coupler Efficiency 3401 | -8/Garrison | Entered Factory 3401 | -7/Factory | Evolved 2 slots: Utility x2 3976 | -7/Factory | Build established: Tank 4150 | -7/Factory | Self-destructed Last Messages --------------- 04124_ Slug penetrates Wall. 04124_ Rocket Launcher+ destroyed. 04124_ Slammed into U-05 Engineer. 04124_ U-05 Engineer destroyed. 04125_ Acquired 30 matter. 04129_ Slug penetrates Wall. 04130_ Dropped Broken Arm. Wheel+. 04131_ Acquired Wheel+. 04132_ Penetrated by Slug. 04135_ The unstable cave ceiling collapses. 04135_ Slug penetrates Wall. 04143_ U-05 Engineer lays Concrete. 04144_ Slug penetrates Wall. 04144_ U-05 Engineer lays Concrete. 04145_ H-55 Commando knocked back. 04145_ U-05 Engineer lays Concrete. 04146_ W-25 Informer sends out distress signal. 04147_ U-05 Engineer lays Concrete. 04148_ U-05 Engineer builds a Wall. 04148_ Slug penetrates Wall. Map ----- +----------------------------------------------------+ | ?????????????????????????????????????????????????? | | ?????????????????????????????????????????????????? | | ?????????????????????????????????????????????????? | | ?????????????????????????????????????????????????? | | ?????????????????????????????????????????????????? | | ?????????????????????????????????????????????????? | | ?????????????????????????????????????????????????? | | ?????????????????????????????????????????????????? | | ?????????????????????????????????????????????????? | | ?????????????????????????????????????????????????? | | ?????????????????????????????????????????????????? | | ?????????????????????????????????????????????????? | | ???????????????????????????????? ??????????????? | | ??????????????????????? ??????? #?????????????? | | ??????????????????????# ????"" #?????????????? | | ??????????????????????# ???"""g #?????????????? | | ??????????????????????# """""" = #?????????????? | | ??????????????????????# #?????????????? | | ??????????????????????# """ ! #?????????????? | | ??????????????????????# """ #?????????????? | | ?????????????????????## """ ???????????????? | | ?????????????????????# u ?????????????????? | | ?????????????????????# u ???????????????????? | | ??????????????????????# #w ##???????????????????? | | ??????????????????????# = * #???????????????????? | | ?????????????????????### @ ###?????????????????? | | ???????################ #?????????????????? | | ?????? +! #?????????????????? | | ?????? # ! #?????????????????? | | ?????? #! = #?????????????????? | | ????? h #?????????????????? | | ?????? #!= #?????????????????? | | ???????######+### #% #?????????????????? | | ????????????????# # ] #?????????????????? | | ????????????????# # #?????????????????? | | ????????????????# ##########?????????????????? | | ????????????????# #??????????????????????????? | | ????????????????# #??????????????????????????? | | ????????????????# #??????????????????????????? | | ????????????????# ####???????????????????????? | | ????????????????# ###############?????????#### | | ????????????????# # ############?????????#### | | ????????????????# # ##?????????## | | ????????????????# " ##?????????## | | ????????????????# # ##?????????## | | ????????????????# # ##?????????## | | ???????????????## # ] ##?????????## | | ???????????????## # ##?????????## | | ???????????????## # ####???????## | | ???????????????## # #####??????## | +----------------------------------------------------+ Best States ------------- Heat Dissipation 56 Energy Generation 14 Energy Capacity 265 Matter Stores 300 Matter Capacity 300 Sight Range 16 Terrain Scan Density 10 Armor Coverage 300 Evasion (%) 44 Item Schematics ----------------- Huge Storage Unit | -10/Materials | Hacked Robot Schematics ------------------ None Fabricated ------------ Nothing Repaired ---------- Nothing Studied --------- Wheel | -9/Materials | Hacked Arm. Wheel | -9/Materials | Hacked Rocket Launcher | -7/Factory | Hacked Alien Tech Used ----------------- None Achievements -------------- None Challenges ------------ None Game ------ Seed BiomechanicalMiningAxe Manual? 0 Play Time 00:47:41 Cumulative 190.6 hours Start 2026.07.19 @ 17:40:20 End 2026.07.19 @ 18:40:12 Sessions 3 Manual Loads 0 Difficulty Rogue Special Mode None Game No. 253 Rogue 253 Adventurer 0 Explorer 0 Win Type - Total 4 Types 4/0/0/0/0/0/0/0/0/0 Lore% 78 Gallery% 59 Achievement% 46 Wizard Run 0 Options --------- Layout 0 ASCII 0 Keyboard 0 Movement Numpad Keybinds 0 Fullscreen 1 Font 18/Terminus Map View 76x50 Zoom Use 0% Tactical HUD 1 Map Filters NONE Filters NONE Steam 1 RUN: c8ca2e31-014f-4edf-9764-f1c910b3d70a